fUSD/lending_fUSD_20240508
["ID","MTS","AMOUNT","RATE_DAILY","PERIOD"]
[326619105,1715149878131,-3026.24,0.00022465,2]
[326619106,1715149878143,-540.40870819,0.00022465,2]
[326619107,1715149878152,-517.03,0.00022465,2]
[326619108,1715149878161,-532.18,0.00022465,2]
[326619109,1715149878171,-500.0,0.00022465,2]
[326619110,1715149878181,-1991.71,0.00022465,2]
[326619111,1715149878191,-1441.2,0.00022465,2]
[326619112,1715149878200,-1488.67,0.00022465,2]
[326619113,1715149878210,-500.0,0.00022465,2]
[326619114,1715149878220,-861.02,0.00022465,2]
[326619115,1715149878233,-500.0,0.00022465,2]
[326619116,1715149878243,-3534.18,0.00022465,2]
[326619117,1715149878253,-982.56,0.00022465,2]
[326619118,1715149878262,-582.52,0.00022465,2]
[326619119,1715149878273,-500.0,0.00022465,2]
[326619120,1715149878283,-500.0,0.00022465,2]
[326619121,1715149878292,-500.0,0.00022465,2]
[326619122,1715149878304,-500.0,0.00022465,2]
[326619123,1715149878313,-500.0,0.00022465,2]
[326619124,1715149878322,-500.0,0.00022465,2]
[326619125,1715149878332,-500.0,0.00022465,2]
[326619126,1715149878342,-500.0,0.00022465,2]
[326619127,1715149878352,-913.04,0.00022465,2]
[326619128,1715149878362,-647.89,0.00022465,2]
[326619129,1715149878372,-500.0,0.00022465,2]
[326619130,1715149878382,-562.81,0.00022465,2]
[326619131,1715149878394,-15777.08,0.00022465,2]
[326619132,1715149878404,-512.6,0.00022465,2]
[326619133,1715149878414,-504.86,0.00022465,2]
[326619134,1715149878423,-500.0,0.00022465,2]
[326619135,1715149878432,-2690.64,0.00022465,2]
[326619136,1715149878441,-1360.34,0.00022465,2]
[326619137,1715149878451,-500.0,0.00022465,2]
[326619138,1715149878460,-500.0,0.00022465,2]
[326619139,1715149878470,-545.75,0.00022465,2]
[326619140,1715149878479,-500.0,0.00022465,2]
[326619141,1715149878489,-150.0,0.000225,3]
[326619142,1715149878501,-188.13,0.000226,2]
[326619143,1715149878511,-301.73,0.000226,2]
[326619144,1715149878521,-254.06,0.000226,2]
[326619145,1715149878531,-2050.76701301,0.00022603,2]
[326619146,1715149878541,-154.31506026,0.00022734,2]
[326619147,1715149878552,-500.0,0.00022739,2]
[326619148,1715149878562,-586.79,0.00022739,2]
[326619149,1715149878572,-500.0,0.00022739,2]
[326619150,1715149878582,-1133.31,0.00022739,2]
[326619151,1715149878592,-500.0,0.00022739,2]
[326619152,1715149878601,-500.0,0.00022739,2]
[326619153,1715149878610,-500.0,0.00022739,2]
[326619154,1715149878620,-3026.24,0.00022739,2]
[326619155,1715149878630,-517.03,0.00022739,2]
[326619156,1715149878643,-532.18,0.00022739,2]
[326619157,1715149878652,-500.0,0.00022739,2]
[326619158,1715149878662,-1991.71,0.00022739,2]
[326619159,1715149878672,-1441.2,0.00022739,2]
[326619160,1715149878681,-1488.67,0.00022739,2]
[326619161,1715149878694,-500.0,0.00022739,2]
[326619162,1715149878704,-861.02,0.00022739,2]
[326619163,1715149878714,-500.0,0.00022739,2]
[326619164,1715149878725,-3534.18,0.00022739,2]
[326619165,1715149878735,-982.56,0.00022739,2]
[326619166,1715149878745,-582.52,0.00022739,2]
[326619167,1715149878755,-500.0,0.00022739,2]
[326619168,1715149878764,-500.0,0.00022739,2]
[326619169,1715149878774,-500.0,0.00022739,2]
[326619170,1715149878784,-500.0,0.00022739,2]
[326619171,1715149878793,-500.0,0.00022739,2]
[326619172,1715149878803,-461.48,0.00022739,2]
[326619173,1715149878813,-500.0,0.00022739,2]
[326619174,1715149878823,-500.0,0.00022739,2]
[326619175,1715149878833,-913.04,0.00022739,2]
[326619176,1715149878843,-647.89,0.00022739,2]
[326619177,1715149878852,-500.0,0.00022739,2]
[326619178,1715149878862,-562.81,0.00022739,2]
[326619179,1715149878872,-15777.08,0.00022739,2]
[326619180,1715149878882,-512.6,0.00022739,2]
[326619181,1715149878896,-504.86,0.00022739,2]
[326619182,1715149878905,-500.0,0.00022739,2]
[326619183,1715149878915,-2690.64,0.00022739,2]
[326619184,1715149878924,-1360.34,0.00022739,2]
[326619185,1715149878934,-500.0,0.00022739,2]
[326619186,1715149878944,-500.0,0.00022739,2]
[326619187,1715149878954,-545.75,0.00022739,2]
[326619188,1715149878963,-514.21,0.00022739,2]
[326619189,1715149878972,-160.81383594,0.00022759,2]
[326619190,1715149878982,-153.8305885,0.0002279,2]
[326619191,1715149878991,-155.93939659,0.00022909,2]
[326619192,1715149879000,-158.72050771,0.00022977,2]
[326619193,1715149879010,-1755.2013,0.00023,2]
[326619194,1715149879019,-150.0,0.00023,3]
[326619195,1715149879029,-567.79560498,0.00023013,2]
[326619196,1715149879039,-586.79,0.00023013,2]
[326619197,1715149879048,-500.0,0.00023013,2]
[326619198,1715149879058,-1133.31,0.00023013,2]
[326619199,1715149879067,-500.0,0.00023013,2]
[326619200,1715149879077,-500.0,0.00023013,2]
[326619201,1715149879086,-500.0,0.00023013,2]
[326619202,1715149879096,-3026.24,0.00023013,2]
[326619203,1715149879105,-517.03,0.00023013,2]
[326619204,1715149879114,-532.18,0.00023013,2]
[326619205,1715149879124,-500.0,0.00023013,2]
[326619206,1715149879134,-1991.71,0.00023013,2]
[326619207,1715149879146,-1441.2,0.00023013,2]
[326619208,1715149879155,-1488.67,0.00023013,2]
[326619209,1715149879165,-500.0,0.00023013,2]
[326619210,1715149879174,-861.02,0.00023013,2]
[326619211,1715149879184,-324.96644133,0.00023013,2]
[326619212,1715149879193,-3534.18,0.00023013,2]
[326619213,1715149879202,-982.56,0.00023013,2]
[326619214,1715149879216,-582.52,0.00023013,2]
[326619215,1715149879226,-500.0,0.00023013,2]
[326619216,1715149879236,-500.0,0.00023013,2]
[326619217,1715149879246,-500.0,0.00023013,2]
[326619218,1715149879258,-500.0,0.00023013,2]
[326619219,1715149879267,-500.0,0.00023013,2]
[326619220,1715149879277,-500.0,0.00023013,2]
[326619221,1715149879286,-500.0,0.00023013,2]
[326619222,1715149879295,-913.04,0.00023013,2]
[326619223,1715149879308,-647.89,0.00023013,2]
[326619224,1715149879318,-500.0,0.00023013,2]
[326619225,1715149879328,-562.81,0.00023013,2]
[326619226,1715149879338,-15777.08,0.00023013,2]
[326619227,1715149879348,-512.6,0.00023013,2]
[326619228,1715149879357,-504.86,0.00023013,2]
[326619229,1715149879367,-500.0,0.00023013,2]
[326619230,1715149879377,-2690.64,0.00023013,2]
[326619231,1715149879388,-1178.41669543,0.00023013,2]
[326619232,1715149879628,-181.92330457,0.00023013,2]
[326619233,1715149879640,-336.52133613,0.00023013,2]
[326619234,1715149879652,-221.58866387,0.00023013,2]
[326619235,1715149879661,-500.0,0.00023013,2]
[326619236,1715149879675,-545.75,0.00023013,2]
[326619237,1715149879685,-586.79,0.00023287,2]
[326619238,1715149879695,-500.0,0.00023287,2]
[326619239,1715149879704,-1133.31,0.00023287,2]
[326619240,1715149879714,-500.0,0.00023287,2]
[326619241,1715149879723,-196.4821685,0.00023287,2]
[326619242,1715149879734,-303.5178315,0.00023287,2]
[326619243,1715149879745,-500.0,0.00023287,2]
[326619244,1715149879755,-99.38006664,0.00023287,2]
[326619245,1715149879766,-2926.85993336,0.00023287,2]
[326619246,1715149879775,-517.03,0.00023287,2]
[326619247,1715149879784,-403.19320714,0.00023287,2]
[326619248,1715149879796,-128.98679286,0.00023287,2]
[326619249,1715149879806,-500.0,0.00023287,2]
[326619250,1715149879816,-1991.71,0.00023287,2]
[326619251,1715149879826,-1441.2,0.00023287,2]
[326619252,1715149879835,-1356.52820713,0.00023287,2]
[326619253,1715149879848,-132.14179287,0.00023287,2]
[326619254,1715149879857,-500.0,0.00023287,2]
[326619255,1715149879868,-861.02,0.00023287,2]
[326619256,1715149879878,-387.33168713,0.00023287,2]
[326619257,1715149880271,-740.99683187,0.00012898,2]
[326619258,1715149880382,-502.68156217,0.00012898,2]
[326619259,1715149880406,-2145.10058726,0.00012999,2]
[326619260,1715149880418,-395.95702815,0.00012999,2]
[326619261,1715149880427,-260.8,0.000143,2]
[326619262,1715149880437,-803.67861233,0.00016037,2]
[326619263,1715149880446,-663.265,0.00017623,2]
[326619264,1715149880456,-527.02796299,0.00019178,2]
[326619265,1715149880465,-500.0,0.00019178,2]
[326619266,1715149880475,-500.0,0.00019452,2]
[326619267,1715149880484,-500.0,0.00019452,2]
[326619268,1715149880496,-500.0,0.00019726,2]
[326619269,1715149880506,-500.0,0.00019726,2]
[326619270,1715149880516,-151.0,0.000199,2]
[326619271,1715149880526,-500.0,0.0002,2]
[326619272,1715149880536,-515.1493548,0.0002,2]
[326619273,1715149880546,-500.0,0.0002,2]
[326619274,1715149880556,-500.0,0.00020177,2]
[326619275,1715149880565,-500.0,0.00020177,2]
[326619276,1715149880575,-500.0,0.00020177,2]
[326619277,1715149880585,-274.67427876,0.00020273,2]
[326619278,1715149880595,-151.0,0.00020273,2]
[326619279,1715149880605,-518.99906401,0.00020547,2]
[326619280,1715149880614,-543.0,0.00020623,2]
[326619281,1715149880623,-271.055569,0.00020821,2]
[326619282,1715149880633,-3655.17471327,0.00021158,2]
[326619283,1715149880645,-3146.84831287,0.00023287,2]
[326619284,1715149880654,-982.56,0.00023287,2]
[326619285,1715149880663,-582.52,0.00023287,2]
[326619286,1715149880685,-500.0,0.00023287,2]
[326619287,1715149880698,-500.0,0.00023287,2]
[326619288,1715149880708,-500.0,0.00023287,2]
[326619289,1715149880717,-421.43077947,0.00023287,2]
[326619290,1715149880921,-1287.0,0.00013,2]
[326619291,1715149880931,-169.86994088,0.00016036,2]
[326619292,1715149880942,-39.72469632,0.00016036,2]
[326619293,1715149880951,-1242.427,0.00017623,2]
[326619294,1715149880960,-500.0,0.00020177,2]
[326619295,1715149880969,-500.0,0.00020177,2]
[326619296,1715149880979,-500.0,0.00020177,2]
[326619297,1715149880988,-500.0,0.00020177,2]
[326619298,1715149880998,-500.0,0.00020177,2]
[326619299,1715149881007,-500.0,0.00020177,2]
[326619300,1715149881016,-500.0,0.00020273,2]
[326619301,1715149881026,-500.0,0.00020547,2]
[326619302,1715149881035,-521.02374826,0.00020623,2]
[326619306,1715150164345,9211.22764239,6.94e-05,2]
[326619309,1715150273405,155.0,6.94e-05,2]
[326619310,1715150274676,366.31861737,6.94e-05,2]
[326619311,1715150275335,155.0,6.94e-05,2]
[326619312,1715150280357,1075.39970332,6.94e-05,2]
[326619313,1715150284459,7509.83070935,6.94e-05,2]
[326619315,1715150290768,155.0,6.94e-05,2]
[326619316,1715150292457,366.31861737,6.94e-05,2]
[326619317,1715150293335,155.0,6.94e-05,2]
[326619318,1715150294334,560.28324543,6.94e-05,2]
[326619319,1715150300451,3832.8437006,6.94e-05,2]
[326619320,1715150306979,366.31861737,6.94e-05,2]
[326619321,1715150309498,560.28324543,6.94e-05,2]
[326619322,1715150311713,265.23130118,6.94e-05,2]
[326619323,1715150319338,242.61470813,6.94e-05,2]
[326619324,1715150326982,366.31861737,6.94e-05,2]
[326619325,1715150329636,560.28324543,6.94e-05,2]
[326619326,1715150348946,366.31861737,6.94e-05,2]
[326619327,1715150353375,560.28324543,6.94e-05,2]
[326619329,1715150369098,366.31861737,6.94e-05,2]
[326619330,1715150376003,560.28324543,6.94e-05,2]
[326619331,1715150390665,284.86676861,6.94e-05,2]
[326619332,1715150391216,560.28324543,6.94e-05,2]
[326619333,1715150412673,560.28324543,6.94e-05,2]
[326619335,1715150435892,560.28324543,6.94e-05,2]
[326619336,1715150456454,560.28324543,6.94e-05,2]
[326619337,1715150474213,560.28324543,6.94e-05,2]
[326619340,1715150498013,560.28324543,6.94e-05,2]
[326619342,1715150513513,168.61202963,6.94e-05,2]
[326619353,1715151043001,-3502.21731077,0.00011575,2]
[326619356,1715151043011,-2183.43778436,0.00011776,2]
[326619360,1715151043021,-209.5946372,0.00011776,2]
[326619363,1715151043031,-539.91396081,0.00011777,2]
[326619366,1715151043040,-156.39432473,0.00011879,2]
[326619367,1715151043050,-1782.56,0.00012713,2]
[326619368,1715151043059,-162.12716256,0.000128,2]
[326619369,1715151043069,-500.0,0.00012898,2]
[326619370,1715151043079,-2159.78,0.000129,2]
[326619371,1715151043090,-499.99,0.000129,2]
[326619372,1715151043099,-7500.0,0.000129,2]
[326619373,1715151043109,-1998.49531184,0.00012904,2]
[326619374,1715151043119,-196.22382347,0.00012959,2]
[326619375,1715151043129,-21133.3563298,0.00012959,2]
[326619376,1715151043139,-150.53,0.0001299,2]
[326619377,1715151043148,-255.0,0.00012998,2]
[326619378,1715151043159,-364.42859097,0.00012998,2]
[326619379,1715151043168,-495.98178989,0.00012998,2]
[326619380,1715151043178,-551.02509715,0.00013,2]
[326619381,1715151043187,-2323.71164807,0.00013,2]
[326619382,1715151043197,-183596.51376463,0.00013,2]
[326619383,1715151043209,-692.79472096,0.00013,2]
[326619384,1715151043221,-4577.67890961,0.00013,2]
[326619385,1715151043233,-1220.20775906,0.00013,2]
[326619386,1715151043244,-406.46916604,0.00013,2]
[326619387,1715151043372,-428.61941707,0.00013,2]
[326619388,1715151043384,-315.19030927,0.00013,2]
[326619392,1715151044846,-1594.0907886,0.00013,2]
[326619397,1715151044858,-403.27935597,0.00013,2]
[326619400,1715151044873,-451.9375,0.00013,2]
[326619403,1715151044885,-1425.94447234,0.00013,2]
[326619410,1715151044909,-1351.08977135,0.00013,2]
[326619411,1715151044920,-1443.16566542,0.00013,2]
[326619412,1715151044931,-348.64959659,0.00013,2]
[326619413,1715151044945,-1341.358607,0.00013,2]
[326619414,1715151044957,-877.8230153,0.00013,2]
[326619415,1715151044970,-1126.43968259,0.00013,2]
[326619416,1715151044982,-1067.81353758,0.00013,2]
[326619417,1715151044994,-455.24917089,0.00013,2]
[326619418,1715151045006,-463.05,0.00013,2]
[326619419,1715151045017,-2503.25846392,0.00013,2]
[326619420,1715151045033,-6461.02607614,0.00013,2]
[326619421,1715151045044,-1007.15591784,0.00013,2]
[326619422,1715151045056,-819.28,0.00013,2]
[326619423,1715151045068,-1633.10754973,0.00013,2]
[326619424,1715151045079,-465.23026387,0.00013,2]
[326619426,1715151045093,-532.49769117,0.00013,2]
[326619428,1715151045104,-591.826501,0.00013,2]
[326619430,1715151045116,-7065.00647956,0.00013,2]
[326619432,1715151045127,-5612.18071053,0.00013,2]
[326619434,1715151045139,-703.37788318,0.00013,2]
[326619437,1715151045150,-421.94944597,0.00013,2]
[326619439,1715151045161,-4431.34297496,0.00013,2]
[326619492,1715151057095,-510.52249735,0.00012999,2]
[326619493,1715151057103,-1284.84492186,0.00013,2]
[326619494,1715151057114,-959.66047797,0.00013,2]
[326619495,1715151057124,-727.95,0.00013,2]
[326619496,1715151057138,-751.754,0.00013,2]
[326619497,1715151057150,-3431.15037639,0.00013,2]
[326619498,1715151057161,-660.23553375,0.00013,2]
[326619499,1715151057172,-536.3179806,0.00013,2]
[326619500,1715151057183,-882.66292321,0.00013,2]
[326619501,1715151057193,-360.08234564,0.00013,2]
[326619550,1715151108303,6054.43784776,6.94e-05,2]
[326619551,1715151108328,9430.91648953,6.94e-05,2]
[326619552,1715151150116,-488.22135213,0.00011674,2]
[326619553,1715151150138,-2363.96297421,0.00011674,2]
[326619554,1715151150158,-343.95475102,0.00011674,2]
[326619555,1715151150179,-405.41199627,0.00011675,2]
[326619556,1715151150198,-3005.25985875,0.00011675,2]
[326619557,1715151150221,-7894.99246919,0.00011676,2]
[326619558,1715151150242,-1016.4363,0.00011677,2]
[326619559,1715151150262,-209.5946372,0.00012826,2]
[326619560,1715151150284,-151.64,0.00012827,2]
[326619561,1715151150304,-1620.52566123,0.000129,2]
[326619562,1715151175457,17617.98436723,0.00025,120]
[326619587,1715152240339,-209.5946372,0.00012266,2]
[326619588,1715152240349,-756.3003628,0.00012267,2]
[326619589,1715152242554,-1207.64325977,0.00012267,2]
[326619594,1715152242566,-301.44505381,0.00012267,2]
[326619598,1715152242581,-314.4136,0.00012267,2]
[326619600,1715152242592,-418.64772362,0.00012267,2]
[326619604,1715152242602,-20.33105502,0.00012268,2]
[326619609,1715152242613,-137.41894498,0.00012268,2]
[326619613,1715152242622,-150.0,0.00012365,2]
[326619616,1715152242632,-200.0,0.00012384,2]
[326619619,1715152242641,-159.26,0.00012476,2]
[326619622,1715152242650,-1232.37093142,0.000126,2]
[326619623,1715152242660,-1561.86172371,0.00012692,2]
[326619624,1715152242669,-5665.0515834,0.000128,2]
[326619625,1715152242680,-3594.4684166,0.000128,2]
[326619626,1715152242690,-159.26,0.00012801,2]
[326619627,1715152242699,-1645.28,0.00012802,2]
[326619628,1715152242712,-499.99,0.00012829,2]
[326619629,1715152242721,-9085.17,0.0001289,2]
[326619630,1715152242730,-150.0,0.00012897,2]
[326619631,1715152242744,-7485.36,0.00012897,2]
[326619632,1715152242754,-420.78002619,0.00012899,2]
[326619633,1715152242764,-469.57870994,0.000129,2]
[326619634,1715152242776,-30.42129006,0.000129,2]
[326619635,1715152242786,-1259.404,0.000129,2]
[326619636,1715152242795,-1111.31152451,0.000129,2]
[326619637,1715152242806,-538.72781616,0.000129,2]
[326619638,1715152242820,-16934.04267543,0.000129,2]
[326619639,1715152242832,-710.733,0.000129,2]
[326619640,1715152242844,-527.03201533,0.000129,2]
[326619641,1715152243860,-11754.10952141,0.000129,2]
[326619643,1715152243871,-3849.46393055,0.000129,2]
[326619645,1715152243883,-932.8665656,0.000129,2]
[326619647,1715152243893,-2510.07611623,0.000129,2]
[326619649,1715152243904,-3391.19304026,0.000129,2]
[326619650,1715152243917,-807.50002,0.000129,2]
[326619651,1715152243927,-15608.99885899,0.000129,2]
[326619652,1715152243938,-1113.16775,0.000129,2]
[326619653,1715152243950,-692.06926178,0.000129,2]
[326619654,1715152243961,-597.1144442,0.000129,2]
[326619655,1715152243973,-1153.5,0.000129,2]
[326619656,1715152243984,-496.27636977,0.000129,2]
[326619657,1715152243995,-18787.87735765,0.000129,2]
[326619658,1715152244006,-1928.1375,0.000129,2]
[326619659,1715152244020,-1786.63625353,0.000129,2]
[326619660,1715152244032,-1034.268095,0.000129,2]
[326619661,1715152246603,-1254.60342369,0.000129,2]
[326619664,1715152246614,-287.17379136,0.000129,2]
[326619667,1715152246625,-373.5132,0.000129,2]
[326619670,1715152246636,-880.21195323,0.000129,2]
[326619673,1715152246648,-10939.39551532,0.000129,2]
[326619674,1715152246657,-1000.0,0.000129,2]
[326619677,1715152246667,-171.7330588,0.000129,2]
[326619678,1715152246676,-193.50257365,0.000129,2]
[326619680,1715152246685,-1849.03308534,0.000129,2]
[326619681,1715152246695,-20045.0761134,0.000129,2]
[326619682,1715152246705,-7500.0,0.000129,2]
[326619683,1715152246714,-326.32319122,0.000129,2]
[326619684,1715152246723,-150.99,0.00012904,2]
[326619685,1715152246733,-250.0,0.00012958,2]
[326619686,1715152246747,-150.53,0.0001299,2]
[326619687,1715152246757,-166.34515989,0.0001299,2]
[326619688,1715152246766,-158.26245048,0.00012998,2]
[326619689,1715152246775,-262.4977061,0.00012998,2]
[326619690,1715152246785,-155.67147007,0.00012998,2]
[326619691,1715152246795,-208.85153682,0.00012998,2]
[326619692,1715152246805,-288.56508134,0.00012998,2]
[326619693,1715152246814,-788.6775476,0.00012998,2]
[326619694,1715152246827,-316.44060217,0.00012998,2]
[326619695,1715152246836,-726.23771159,0.00012998,2]
[326619696,1715152246846,-424.85217809,0.00012998,2]
[326619697,1715152246856,-427.15279386,0.00012998,2]
[326619698,1715152246865,-2042.36802413,0.00012998,2]
[326619699,1715152246875,-379.97841677,0.00012998,2]
[326619700,1715152246884,-812.10932779,0.00012998,2]
[326619701,1715152246893,-1605.77398069,0.00012999,2]
[326619702,1715152246903,-452101.9473546,0.00013,2]
[326619703,1715152246914,-867.11870689,0.00013,2]
[326619704,1715152246925,-425459.00933442,0.00013,2]
[326619705,1715152246936,-24114.26977452,0.00013,2]
[326619706,1715152246947,-62600.0,0.00013,2]
[326619708,1715152249976,-819.54740734,0.00013,2]
[326619710,1715152249987,-549.5199905,0.00013,2]
[326619711,1715152250000,-826.11745518,0.00013,2]
[326619712,1715152250012,-453.32000598,0.00013,2]
[326619713,1715152250023,-255.637,0.00013,2]
[326619714,1715152250035,-7016.38830538,0.00013,2]
[326619715,1715152250046,-1611.69,0.00013,2]
[326619716,1715152250056,-26612.50580397,0.00013,2]
[326619717,1715152250070,-2460.98823099,0.00013,2]
[326619718,1715152250950,-2507.09621707,0.00013,2]
[326619735,1715152984825,652.02,0.00025,120]
[326619823,1715153440205,-10000.272,0.00011846,2]
[326619828,1715153440224,-3797.53634203,0.00011846,2]
[326619831,1715153440235,-196.43,0.00011847,2]
[326619835,1715153440245,-1787.06560171,0.00011849,2]
[326619839,1715153440255,-196.43,0.0001185,2]
[326619842,1715153440266,-196.43,0.00011853,2]
[326619844,1715153440276,-196.43,0.00011856,2]
[326619845,1715153440286,-196.43,0.00011859,2]
[326619846,1715153440295,-196.43,0.00011862,2]
[326619847,1715153440307,-196.43,0.00011866,2]
[326619848,1715153440316,-196.43,0.00011869,2]
[326619849,1715153440325,-196.43,0.00011872,2]
[326619850,1715153440335,-196.43,0.00011875,2]
[326619851,1715153440344,-196.43,0.00011878,2]
[326619852,1715153440354,-196.43,0.00011881,2]
[326619853,1715153440363,-196.43,0.00011884,2]
[326619854,1715153440373,-196.43,0.00011887,2]
[326619855,1715153440382,-196.43,0.00011891,2]
[326619856,1715153440391,-196.43,0.00011894,2]
[326619857,1715153440401,-196.43,0.00011897,2]
[326619858,1715153440410,-196.43,0.000119,2]
[326619859,1715153440419,-160.48843771,0.000119,2]
[326619860,1715153440429,-196.43,0.00011903,2]
[326619861,1715153440438,-196.43,0.00011906,2]
[326619862,1715153440448,-441.68283259,0.0001193,2]
[326619863,1715153440458,-150.0,0.0001193,2]
[326619864,1715153440467,-150.0,0.0001193,2]
[326619865,1715153440477,-23890.0,0.00011931,2]
[326619866,1715153440486,-1475.74,0.00011941,2]
[326619867,1715153440495,-202.0,0.00012,2]
[326619868,1715153440505,-160.4884377,0.00012067,2]
[326619869,1715153440514,-160.4884377,0.00012233,2]
[326619870,1715153440524,-2594.16,0.00012301,2]
[326619871,1715153440533,-160.4884377,0.000124,2]
[326619872,1715153440543,-11326.69,0.00012439,2]
[326619873,1715153440552,-250.0,0.00012441,2]
[326619874,1715153440562,-150.0,0.00012493,2]
[326619875,1715153440571,-160.4884377,0.00012567,2]
[326619876,1715153440581,-1561.86172371,0.00012684,2]
[326619877,1715153440590,-1499.07,0.00012692,2]
[326619878,1715153440599,-160.4884377,0.00012733,2]
[326619879,1715153440608,-1628.0228,0.000128,2]
[326619880,1715153440618,-471.3118,0.000128,2]
[326619881,1715153440628,-181.63829139,0.000128,2]
[326619882,1715153440637,-1806.4799,0.000128,2]
[326619883,1715153440646,-304.1531,0.000128,2]
[326619884,1715153440656,-170.38,0.000128,2]
[326619885,1715153440665,-251.98815211,0.00012867,2]
[326619886,1715153440675,-1363.46672697,0.00012867,2]
[326619887,1715153440684,-11984.87536281,0.0001287,2]
[326619888,1715153440693,-826.3715483,0.0001289,2]
[326619889,1715153440702,-150.99,0.00012893,2]
[326619890,1715153440712,-18010.8002,0.00012899,2]
[326619891,1715153440721,-7500.0,0.00012899,2]
[326619892,1715153440731,-2500.0,0.00012899,2]
[326619893,1715153440740,-9097.1097,0.000129,2]
[326619894,1715153440750,-1242.8842,0.000129,2]
[326619895,1715153440760,-100000.0,0.000129,2]
[326619896,1715153440770,-841.8204,0.000129,2]
[326619897,1715153440780,-2872.8686,0.000129,2]
[326619898,1715153440789,-1000.0,0.000129,2]
[326619899,1715153440799,-171.7330588,0.000129,2]
[326619900,1715153440809,-170.73232031,0.000129,2]
[326619901,1715153440818,-1617.90394969,0.000129,2]
[326619902,1715153440827,-160.4884377,0.000129,2]
[326619903,1715153440836,-154.80205892,0.000129,2]
[326619904,1715153440846,-369.92462703,0.00012998,2]
[326619905,1715153440855,-1042.70580494,0.00012998,2]
[326619906,1715153440864,-499.99,0.00012998,2]
[326619907,1715153440873,-150.99,0.00012998,2]
[326619908,1715153440882,-5559.03748487,0.00012999,2]
[326619909,1715153440892,-187.45559682,0.00012999,2]
[326619910,1715153440901,-28756.15674362,0.00012999,2]
[326619911,1715153440910,-98047.0,0.00012999,2]
[326619912,1715153440920,-268417.65990365,0.00013,2]
[326619913,1715153440933,-82982.30087,0.00013,2]
[326619914,1715153440944,-1647.10744656,0.00013,2]
[326619915,1715153440956,-18094.278118,0.00013,2]
[326619916,1715153440967,-3007.90000004,0.00013,2]
[326619917,1715153440979,-15407.09288932,0.00013,2]
[326619918,1715153440990,-2010.66061732,0.00013,2]
[326619919,1715153441001,-5180.7408274,0.00013,2]
[326619920,1715153441014,-237785.16418756,0.00013,2]
[326619921,1715153441777,-155.15597951,0.0001299,2]
[326619926,1715153441787,-209.62336073,0.00013,2]
[326619930,1715153441799,-2924.74005624,0.00013,2]
[326619933,1715153441812,-684.71908266,0.00013,2]
[326619935,1715153441823,-22960.50001,0.00013,2]
[326619989,1715153445473,-838.98072108,0.00013,2]
[326619990,1715153445490,-9731.42920487,0.00013,2]
[326619991,1715153445499,-1924.49505101,0.00013,2]
[326619994,1715153447352,-10394.44038633,0.00013,2]
[326619996,1715153447364,-473.13781508,0.00013,2]
[326619997,1715153447375,-410.94000005,0.00013,2]
[326619998,1715153447387,-3007.16624617,0.00013,2]
[326620018,1715154640787,-243.18,9.432e-05,2]
[326620022,1715154640798,-217.09655827,9.805e-05,2]
[326620025,1715154640808,-872.96718554,9.806e-05,2]
[326620028,1715154640820,-5354.30322795,0.00011758,2]
[326620030,1715154640833,-3004.8363041,0.00011758,2]
[326620034,1715154641054,-150.0,0.00011819,2]
[326620035,1715154641065,-150.0,0.00011819,2]
[326620036,1715154641077,-1000.0,0.0001183,2]
[326620037,1715154641087,-14090.82,0.0001183,2]
[326620038,1715154641098,-206.43,0.00011931,2]